fUST/lending_fUST_20240613
["ID","MTS","AMOUNT","RATE_DAILY","PERIOD"]
[329306650,1718230243898,-500.0,0.00016438,2]
[329306651,1718230243908,-500.0,0.00016438,2]
[329306652,1718230243919,-500.0,0.00016438,2]
[329306653,1718230243929,-562.26,0.00016438,2]
[329306654,1718230243940,-500.0,0.00016438,2]
[329306655,1718230243950,-847.18,0.00016438,2]
[329306656,1718230243960,-500.0,0.00016438,2]
[329306657,1718230243971,-500.0,0.00016438,2]
[329306658,1718230243985,-500.0,0.00016438,2]
[329306659,1718230243995,-590.95,0.00016438,2]
[329306660,1718230244005,-455.79106469,0.00016438,2]
[329306661,1718230244016,-500.0,0.00016438,2]
[329306662,1718230244026,-80930.39999403,0.00016711,15]
[329306663,1718230244036,-500.0,0.00016711,2]
[329306664,1718230244047,-500.0,0.00016711,2]
[329306665,1718230244062,-500.0,0.00016711,2]
[329306666,1718230244073,-256.36,0.00016711,2]
[329306667,1718230244084,-500.0,0.00016711,2]
[329306668,1718230244094,-500.0,0.00016711,2]
[329306669,1718230244105,-500.0,0.00016711,2]
[329306670,1718230244116,-500.0,0.00016711,2]
[329306671,1718230244127,-500.0,0.00016711,2]
[329306672,1718230244138,-500.0,0.00016711,2]
[329306673,1718230244150,-500.0,0.00016711,2]
[329306674,1718230244164,-500.0,0.00016711,2]
[329306675,1718230244178,-560.84,0.00016711,2]
[329306676,1718230244188,-500.0,0.00016711,2]
[329306677,1718230244199,-500.0,0.00016711,2]
[329306678,1718230244214,-500.0,0.00016711,2]
[329306679,1718230244228,-500.0,0.00016712,2]
[329306680,1718230244243,-500.0,0.00016712,2]
[329306682,1718230244254,-500.0,0.00016712,4]
[329306684,1718230244270,-519.10963546,0.00016712,2]
[329306685,1718230244280,-500.0,0.00016712,2]
[329306687,1718230244299,-500.0,0.00016712,2]
[329306688,1718230244319,-503.47347521,0.00016712,2]
[329306690,1718230244337,-500.0,0.00016712,2]
[329306692,1718230244348,-385.07062156,0.00016712,2]
[329306694,1718230244363,-500.0,0.00016712,2]
[329306697,1718230244374,-500.0,0.00016712,2]
[329306699,1718230244385,-500.0,0.00016712,2]
[329306702,1718230244407,-500.0,0.00016712,2]
[329306704,1718230244419,-500.0,0.00016712,2]
[329306706,1718230244430,-542.49802062,0.00016712,2]
[329306708,1718230244468,-500.0,0.00016712,2]
[329306711,1718230244503,-538.37,0.00016712,2]
[329306712,1718230244529,-500.0,0.00016712,2]
[329306713,1718230244542,-500.0,0.00016712,2]
[329306714,1718230244554,-500.0,0.00016712,2]
[329306715,1718230244565,-551.0,0.00016712,2]
[329306716,1718230244577,-500.0,0.00016712,2]
[329306717,1718230244595,-500.0,0.00016712,2]
[329306718,1718230244611,-343.7965023,0.00016712,2]
[329306719,1718230244621,-500.0,0.00016712,2]
[329306720,1718230244632,-500.0,0.00016712,2]
[329306721,1718230244643,-446.35622317,0.00016712,2]
[329306722,1718230244654,-500.0,0.00016712,2]
[329306723,1718230244665,-500.0,0.00016712,2]
[329306724,1718230244675,-500.0,0.00016712,2]
[329306725,1718230244685,-500.0,0.00016712,2]
[329306726,1718230244699,-577.72183822,0.00016712,2]
[329306728,1718230244714,-500.0,0.00016712,2]
[329306729,1718230244725,-500.0,0.00016712,2]
[329306730,1718230244736,-500.0,0.00016712,2]
[329306731,1718230244746,-500.0,0.00016712,2]
[329306732,1718230244758,-500.0,0.00016712,2]
[329306733,1718230244768,-500.0,0.00016712,2]
[329306734,1718230244778,-500.0,0.00016712,2]
[329306735,1718230244788,-500.0,0.00016712,2]
[329306736,1718230244800,-500.0,0.00016712,2]
[329306737,1718230244810,-500.0,0.00016712,2]
[329306738,1718230244819,-500.0,0.00016712,2]
[329306739,1718230244829,-500.0,0.00016712,2]
[329306740,1718230244839,-500.0,0.00016712,2]
[329306741,1718230244849,-500.0,0.00016712,2]
[329306742,1718230244859,-500.85481312,0.00016712,2]
[329306743,1718230244869,-503.95900646,0.00016712,2]
[329306744,1718230244879,-508.33945223,0.00016712,2]
[329306745,1718230244889,-500.0,0.00016712,2]
[329306746,1718230244899,-500.0,0.00016712,2]
[329306747,1718230244910,-500.0,0.00016712,2]
[329306748,1718230244921,-500.0,0.00016712,2]
[329306749,1718230244931,-500.0,0.00016712,2]
[329306750,1718230244944,-500.0,0.00016712,2]
[329306751,1718230244954,-500.0,0.00016712,2]
[329306752,1718230244966,-500.0,0.00016712,2]
[329306753,1718230244982,-500.0,0.00016712,2]
[329306754,1718230244995,-571.7,0.00016712,2]
[329306755,1718230245006,-500.0,0.00016712,2]
[329306756,1718230245016,-500.0,0.00016712,2]
[329306757,1718230245028,-500.0,0.00016712,2]
[329306758,1718230245041,-500.0,0.00016712,2]
[329306759,1718230245056,-516.66,0.00016712,2]
[329306760,1718230245069,-500.0,0.00016712,2]
[329306762,1718230245080,-500.0,0.00016712,2]
[329306763,1718230245091,-500.0,0.00016712,2]
[329306764,1718230245102,-500.0,0.00016712,2]
[329306765,1718230245113,-500.0,0.00016712,2]
[329306766,1718230245125,-500.0,0.00016712,2]
[329306767,1718230245137,-500.0,0.00016712,2]
[329306768,1718230245147,-500.0,0.00016712,2]
[329306769,1718230245159,-500.0,0.00016712,2]
[329306770,1718230245169,-500.0,0.00016712,2]
[329306771,1718230245180,-500.0,0.00016712,2]
[329306772,1718230245191,-684.53,0.00016712,2]
[329306773,1718230245201,-500.0,0.00016712,2]
[329306774,1718230245214,-500.0,0.00016712,2]
[329306775,1718230245226,-500.0,0.00016712,2]
[329306776,1718230245236,-415.3669649,0.00016712,2]
[329306777,1718230245247,-500.0,0.00016712,2]
[329306778,1718230245261,-500.36327751,0.00016712,2]
[329306779,1718230245275,-500.0,0.00016712,2]
[329306780,1718230245286,-500.0,0.00016712,2]
[329306781,1718230245296,-500.0,0.00016712,2]
[329306782,1718230245307,-500.0,0.00016712,2]
[329306783,1718230245320,-500.0,0.00016712,2]
[329306784,1718230245330,-500.0,0.00016712,2]
[329306785,1718230245357,-500.0,0.00016712,2]
[329306786,1718230245375,-500.0,0.00016712,2]
[329306787,1718230245388,-500.0,0.00016712,2]
[329306788,1718230245398,-500.0,0.00016712,2]
[329306789,1718230245408,-500.0,0.00016712,2]
[329306790,1718230245419,-500.0,0.00016712,2]
[329306791,1718230245430,-500.0,0.00016712,2]
[329306792,1718230245454,-622.42,0.00016712,2]
[329306793,1718230245465,-500.0,0.00016712,2]
[329306794,1718230245475,-500.0,0.00016712,2]
[329306795,1718230245485,-764.43,0.00016712,2]
[329306796,1718230245496,-500.0,0.00016712,2]
[329306797,1718230245506,-500.0,0.00016712,2]
[329306798,1718230245516,-500.0,0.00016712,2]
[329306799,1718230245526,-500.0,0.00016712,2]
[329306800,1718230245537,-1108.71,0.00016712,2]
[329306801,1718230245548,-500.0,0.00016712,2]
[329306802,1718230245559,-2444.01,0.00016712,2]
[329306803,1718230245569,-500.0,0.00016712,2]
[329306804,1718230245580,-303.22026951,0.00016712,2]
[329306805,1718230245590,-500.0,0.00016712,2]
[329306806,1718230245601,-500.0,0.00016712,2]
[329306807,1718230245611,-500.0,0.00016712,2]
[329306808,1718230245622,-500.0,0.00016712,2]
[329306809,1718230245633,-505.42,0.00016712,2]
[329306810,1718230245643,-500.0,0.00016712,2]
[329306811,1718230245655,-500.0,0.00016712,2]
[329306812,1718230245665,-607.44,0.00016712,2]
[329306813,1718230245675,-500.0,0.00016712,2]
[329306814,1718230245692,-500.0,0.00016712,2]
[329306815,1718230245703,-2271.14,0.00016712,2]
[329306816,1718230245713,-315.91901536,0.00016712,2]
[329306817,1718230245725,-6255.66,0.00016712,2]
[329306818,1718230245735,-500.0,0.00016712,2]
[329306819,1718230245746,-500.0,0.00016712,2]
[329306820,1718230245768,-500.0,0.00016712,2]
[329306821,1718230245778,-500.0,0.00016712,2]
[329306822,1718230245790,-2632.92,0.00016712,2]
[329306823,1718230245801,-500.0,0.00016712,2]
[329306824,1718230245819,-500.0,0.00016712,2]
[329306825,1718230245830,-500.0,0.00016712,2]
[329306826,1718230245846,-500.0,0.00016712,2]
[329306827,1718230245857,-1448.52,0.00016712,2]
[329306828,1718230245874,-629.32496476,0.00016712,2]
[329306829,1718230245886,-2002.44,0.00016712,2]
[329306830,1718230245898,-500.0,0.00016712,2]
[329306831,1718230245929,-500.0,0.00016712,2]
[329306832,1718230245951,-500.0,0.00016712,2]
[329306833,1718230245967,-614.41,0.00016712,2]
[329306834,1718230246000,-500.0,0.00016712,2]
[329306835,1718230246019,-500.0,0.00016712,2]
[329306836,1718230246033,-3340.25,0.00016712,2]
[329306837,1718230246061,-500.0,0.00016712,2]
[329306838,1718230246073,-661.63,0.00016712,2]
[329306839,1718230246084,-504.63814823,0.00016712,2]
[329306840,1718230246100,-500.0,0.00016712,2]
[329306841,1718230246112,-500.0,0.00016712,2]
[329306842,1718230246127,-601.85,0.00016712,2]
[329306843,1718230246165,-500.0,0.00016712,2]
[329306844,1718230246178,-500.0,0.00016712,2]
[329306846,1718230246197,-500.0,0.00016712,2]
[329306848,1718230246208,-500.0,0.00016712,2]
[329306849,1718230246221,-500.0,0.00016712,2]
[329306850,1718230246236,-500.0,0.00016712,2]
[329306851,1718230246251,-500.0,0.00016712,2]
[329306852,1718230246263,-500.0,0.00016712,2]
[329306853,1718230246274,-859.57,0.00016712,2]
[329306854,1718230246285,-500.0,0.00016712,2]
[329306855,1718230246296,-500.0,0.00016712,2]
[329306856,1718230246310,-552.48,0.00016712,2]
[329306857,1718230246320,-500.0,0.00016712,2]
[329306858,1718230246330,-500.0,0.00016712,2]
[329306859,1718230246340,-500.0,0.00016712,2]
[329306860,1718230246353,-1116.25,0.00016712,2]
[329306861,1718230246363,-500.0,0.00016712,2]
[329306862,1718230246372,-500.0,0.00016712,2]
[329306863,1718230246384,-500.0,0.00016712,2]
[329306864,1718230246394,-706.51,0.00016712,2]
[329306865,1718230246404,-500.0,0.00016712,2]
[329306866,1718230246416,-562.26,0.00016712,2]
[329306867,1718230246426,-500.0,0.00016712,2]
[329306868,1718230246457,-847.18,0.00016712,2]
[329306869,1718230246467,-500.0,0.00016712,2]
[329306870,1718230246478,-590.95,0.00016712,2]
[329306871,1718230246489,-500.0,0.00016712,2]
[329306872,1718230246499,-230.00874475,0.00016955,2]
[329306873,1718230246510,-164.49607882,0.00016985,2]
[329306874,1718230246520,-500.0,0.00016985,2]
[329306875,1718230246530,-500.0,0.00016986,2]
[329306876,1718230246541,-500.0,0.00016986,2]
[329306877,1718230246552,-500.0,0.00016986,2]
[329306878,1718230246562,-500.0,0.00016986,2]
[329306879,1718230246578,-500.0,0.00016986,2]
[329306880,1718230246588,-258.09980401,0.00016986,2]
[329306881,1718230246598,-500.0,0.00016986,2]
[329306882,1718230246608,-538.37,0.00016986,2]
[329306883,1718230246618,-393.30660927,0.00016986,2]
[329306884,1718230246629,-203.08,0.00016986,2]
[329306885,1718230246639,-551.0,0.00016986,2]
[329306886,1718230246650,-500.0,0.00016986,2]
[329306887,1718230246660,-500.0,0.00016986,2]
[329306888,1718230246670,-500.0,0.00016986,2]
[329306889,1718230246680,-500.0,0.00016986,2]
[329306890,1718230246690,-500.0,0.00016986,2]
[329306891,1718230246701,-500.0,0.00016986,2]
[329306892,1718230246712,-500.0,0.00016986,2]
[329306893,1718230246722,-500.0,0.00016986,2]
[329306894,1718230246735,-500.0,0.00016986,2]
[329306895,1718230246751,-500.0,0.00016986,2]
[329306896,1718230246766,-500.0,0.00016986,2]
[329306897,1718230246776,-500.0,0.00016986,2]
[329306898,1718230246787,-500.0,0.00016986,2]
[329306899,1718230246798,-500.0,0.00016986,2]
[329306900,1718230246810,-500.0,0.00016986,2]
[329306901,1718230246820,-500.0,0.00016986,2]
[329306902,1718230246830,-500.0,0.00016986,2]
[329306903,1718230246840,-500.0,0.00016986,2]
[329306904,1718230246962,-500.0,0.00016986,2]
[329306905,1718230246973,-500.0,0.00016986,2]
[329306906,1718230246989,-500.0,0.00016986,2]
[329306907,1718230246999,-571.7,0.00016986,2]
[329306908,1718230247011,-500.0,0.00016986,2]
[329306909,1718230247023,-500.0,0.00016986,2]
[329306910,1718230247034,-516.66,0.00016986,2]
[329306911,1718230247044,-500.0,0.00016986,2]
[329306912,1718230247057,-475.87266634,0.00016986,2]
[329306913,1718230247068,-500.0,0.00016986,2]
[329306914,1718230247079,-500.0,0.00016986,2]
[329306915,1718230247089,-500.0,0.00016986,2]
[329306916,1718230247100,-500.0,0.00016986,2]
[329306917,1718230247110,-500.0,0.00016986,2]
[329306918,1718230247120,-500.0,0.00016986,2]
[329306919,1718230247130,-500.0,0.00016986,2]
[329306921,1718230247140,-684.53,0.00016986,2]
[329306922,1718230247151,-500.0,0.00016986,2]
[329306924,1718230247161,-500.0,0.00016986,2]
[329306926,1718230247171,-500.0,0.00016986,2]
[329306927,1718230247183,-500.0,0.00016986,2]
[329306928,1718230247194,-500.0,0.00016986,2]
[329306929,1718230247208,-500.0,0.00016986,2]
[329306930,1718230247225,-500.0,0.00016986,2]
[329306931,1718230247236,-500.0,0.00016986,2]
[329306932,1718230247247,-500.0,0.00016986,2]
[329306933,1718230247260,-500.0,0.00016986,2]
[329306934,1718230247272,-500.0,0.00016986,2]
[329306935,1718230247282,-500.0,0.00016986,2]
[329306936,1718230247293,-500.0,0.00016986,2]
[329306937,1718230247305,-500.0,0.00016986,2]
[329306938,1718230247317,-500.0,0.00016986,2]
[329306939,1718230247329,-622.42,0.00016986,2]
[329306940,1718230247340,-500.0,0.00016986,2]
[329306941,1718230247350,-500.0,0.00016986,2]
[329306942,1718230247362,-764.43,0.00016986,2]
[329306943,1718230247390,-500.0,0.00016986,2]
[329306944,1718230247401,-500.0,0.00016986,2]
[329306945,1718230247412,-369.19017065,0.00016986,2]
[329306946,1718230247423,-500.0,0.00016986,2]
[329306947,1718230247447,-1108.71,0.00016986,2]
[329306948,1718230247465,-2444.01,0.00016986,2]
[329306949,1718230247476,-500.0,0.00016986,2]
[329306950,1718230247487,-500.0,0.00016986,2]
[329306951,1718230247498,-500.0,0.00016986,2]
[329306952,1718230247509,-500.0,0.00016986,2]
[329306953,1718230247520,-505.42,0.00016986,2]
[329306954,1718230247531,-500.0,0.00016986,2]
[329306955,1718230247542,-500.0,0.00016986,2]
[329306956,1718230247562,-607.44,0.00016986,2]
[329306957,1718230247572,-500.0,0.00016986,2]
[329306958,1718230247582,-500.0,0.00016986,2]
[329306959,1718230247593,-2271.14,0.00016986,2]
[329306960,1718230247612,-6255.66,0.00016986,2]
[329306961,1718230247622,-500.0,0.00016986,2]
[329306962,1718230247633,-500.0,0.00016986,2]
[329306963,1718230247645,-500.0,0.00016986,2]
[329306964,1718230247656,-2632.92,0.00016986,2]
[329306965,1718230247667,-500.0,0.00016986,2]
[329306966,1718230247679,-500.0,0.00016986,2]
[329306967,1718230247690,-500.0,0.00016986,2]
[329306968,1718230247701,-500.0,0.00016986,2]
[329306969,1718230247712,-1448.52,0.00016986,2]
[329306970,1718230247723,-2002.44,0.00016986,2]
[329306971,1718230247733,-500.0,0.00016986,2]
[329306972,1718230247744,-500.0,0.00016986,2]
[329306973,1718230247755,-500.0,0.00016986,2]
[329306974,1718230247766,-614.41,0.00016986,2]
[329306975,1718230247777,-500.0,0.00016986,2]
[329306976,1718230247788,-500.0,0.00016986,2]
[329306977,1718230247799,-3340.25,0.00016986,2]
[329306978,1718230247810,-500.0,0.00016986,2]
[329306979,1718230247820,-661.63,0.00016986,2]
[329306980,1718230247830,-500.0,0.00016986,2]
[329306981,1718230247841,-500.0,0.00016986,2]
[329306982,1718230247851,-601.85,0.00016986,2]
[329306983,1718230247861,-500.0,0.00016986,2]
[329306984,1718230247872,-500.0,0.00016986,2]
[329306985,1718230247883,-500.0,0.00016986,2]
[329306986,1718230247893,-637.07,0.00016986,2]
[329306987,1718230247903,-500.0,0.00016986,2]
[329306988,1718230247914,-500.0,0.00016986,2]
[329306989,1718230247924,-500.0,0.00016986,2]
[329306990,1718230247935,-859.57,0.00016986,2]
[329306991,1718230247945,-500.0,0.00016986,2]
[329306992,1718230247956,-552.48,0.00016986,2]
[329306993,1718230247969,-500.0,0.00016986,2]
[329306994,1718230247993,-500.0,0.00016986,2]
[329306995,1718230248004,-500.0,0.00016986,2]
[329306996,1718230248014,-1116.25,0.00016986,2]
[329306997,1718230248026,-239.80654856,0.00016986,2]
[329306998,1718230248045,-706.51,0.00016986,2]
[329306999,1718230248058,-500.0,0.00016986,2]
[329307000,1718230248068,-562.26,0.00016986,2]
[329307001,1718230248080,-847.18,0.00016986,2]
[329307002,1718230248092,-500.0,0.00016986,2]
[329307003,1718230248102,-590.95,0.00016986,2]
[329307004,1718230248113,-500.0,0.00016986,2]
[329307005,1718230248124,-500.0,0.00017259,2]
[329307006,1718230248136,-500.0,0.00017259,2]
[329307007,1718230248151,-500.0,0.0001726,2]
[329307008,1718230248164,-538.37,0.0001726,2]
[329307009,1718230248176,-551.0,0.0001726,2]
[329307010,1718230248188,-500.0,0.0001726,2]
[329307011,1718230248200,-500.0,0.0001726,2]
[329307012,1718230248211,-276.76,0.0001726,2]
[329307013,1718230248222,-500.0,0.0001726,2]
[329307014,1718230248234,-500.0,0.0001726,2]
[329307015,1718230248245,-500.0,0.0001726,2]
[329307016,1718230248263,-500.0,0.0001726,2]
[329307017,1718230248274,-500.0,0.0001726,2]
[329307018,1718230248284,-500.0,0.0001726,2]
[329307019,1718230248295,-500.0,0.0001726,2]
[329307020,1718230248307,-500.0,0.0001726,2]
[329307021,1718230248319,-500.0,0.0001726,2]
[329307022,1718230248329,-500.0,0.0001726,2]
[329307023,1718230248340,-500.0,0.0001726,2]
[329307024,1718230248351,-571.7,0.0001726,2]
[329307025,1718230248361,-500.0,0.0001726,2]
[329307026,1718230248372,-500.0,0.0001726,2]
[329307027,1718230248382,-516.66,0.0001726,2]
[329307028,1718230248393,-500.0,0.0001726,2]
[329307029,1718230248404,-500.0,0.0001726,2]
[329307030,1718230248415,-500.0,0.0001726,2]
[329307031,1718230248426,-500.0,0.0001726,2]
[329307032,1718230248458,-500.0,0.0001726,2]
[329307033,1718230248472,-684.53,0.0001726,2]
[329307034,1718230248483,-500.0,0.0001726,2]
[329307035,1718230248494,-500.0,0.0001726,2]
[329307036,1718230248505,-500.0,0.0001726,2]
[329307037,1718230248515,-500.0,0.0001726,2]
[329307038,1718230248527,-500.0,0.0001726,2]
[329307039,1718230248537,-500.0,0.0001726,2]
[329307040,1718230248547,-622.42,0.0001726,2]
[329307041,1718230248559,-500.0,0.0001726,2]
[329307042,1718230248569,-203.93474426,0.0001726,2]
[329307043,1718230248580,-764.43,0.0001726,2]
[329307044,1718230248591,-500.0,0.0001726,2]
[329307045,1718230248602,-500.0,0.0001726,2]
[329307046,1718230248616,-500.0,0.0001726,2]
[329307047,1718230248630,-1108.71,0.0001726,2]
[329307048,1718230248645,-2444.01,0.0001726,2]
[329307049,1718230248659,-500.0,0.0001726,2]
[329307050,1718230248672,-500.0,0.0001726,2]
[329307051,1718230248687,-505.42,0.0001726,2]
[329307052,1718230248699,-607.44,0.0001726,2]
[329307053,1718230248712,-2271.14,0.0001726,2]
[329307054,1718230248725,-6255.66,0.0001726,2]
[329307055,1718230248738,-500.0,0.0001726,2]
[329307056,1718230248752,-2632.92,0.0001726,2]
[329307057,1718230248765,-500.0,0.0001726,2]
[329307058,1718230248778,-500.0,0.0001726,2]
[329307059,1718230248791,-1448.52,0.0001726,2]
[329307060,1718230248805,-2002.44,0.0001726,2]
[329307061,1718230248821,-500.0,0.0001726,2]
[329307062,1718230248834,-500.0,0.0001726,2]
[329307063,1718230248848,-500.0,0.0001726,2]
[329307064,1718230248861,-614.41,0.0001726,2]
[329307065,1718230248875,-500.0,0.0001726,2]
[329307066,1718230248888,-3340.25,0.0001726,2]
[329307067,1718230248901,-500.0,0.0001726,2]
[329307068,1718230248914,-661.63,0.0001726,2]
[329307069,1718230248927,-500.0,0.0001726,2]
[329307070,1718230248940,-601.85,0.0001726,2]
[329307071,1718230248953,-500.0,0.0001726,2]
[329307072,1718230248965,-271.84423605,0.0001726,2]
[329307073,1718230248980,-500.0,0.0001726,2]
[329307074,1718230248993,-859.57,0.0001726,2]
[329307075,1718230249006,-500.0,0.0001726,2]
[329307076,1718230249019,-552.48,0.0001726,2]
[329307077,1718230249032,-500.0,0.0001726,2]
[329307078,1718230249045,-500.0,0.0001726,2]
[329307079,1718230249057,-500.0,0.0001726,2]
[329307080,1718230249071,-1116.25,0.0001726,2]
[329307081,1718230249084,-706.51,0.0001726,2]
[329307082,1718230249098,-500.0,0.0001726,2]
[329307083,1718230249111,-562.26,0.0001726,2]
[329307084,1718230249126,-847.18,0.0001726,2]
[329307085,1718230249141,-558.44,0.0001726,2]
[329307086,1718230249156,-590.95,0.0001726,2]
[329307087,1718230249167,-500.0,0.00017533,2]
[329307088,1718230249179,-500.0,0.00017534,2]
[329307089,1718230249191,-538.37,0.00017534,2]
[329307090,1718230249203,-551.0,0.00017534,2]
[329307091,1718230249217,-500.0,0.00017534,2]
[329307092,1718230249230,-500.0,0.00017534,2]
[329307093,1718230249243,-500.0,0.00017534,2]
[329307094,1718230249261,-500.0,0.00017534,2]
[329307095,1718230249275,-553.12,0.00017534,2]
[329307096,1718230249286,-500.0,0.00017534,2]
[329307097,1718230249298,-500.0,0.00017534,2]
[329307098,1718230249311,-500.0,0.00017534,2]
[329307099,1718230249322,-450.24372524,0.00017534,2]
[329307100,1718230249336,-571.7,0.00017534,2]
[329307101,1718230249348,-516.66,0.00017534,2]
[329307102,1718230249361,-500.0,0.00017534,2]
[329307103,1718230249373,-500.0,0.00017534,2]
[329307104,1718230249384,-500.0,0.00017534,2]
[329307105,1718230249396,-500.0,0.00017534,2]
[329307106,1718230249409,-684.53,0.00017534,2]
[329307107,1718230249421,-500.0,0.00017534,2]
[329307108,1718230249434,-500.0,0.00017534,2]
[329307109,1718230249460,-500.0,0.00017534,2]
[329307110,1718230249473,-622.42,0.00017534,2]
[329307111,1718230249486,-500.0,0.00017534,2]
[329307112,1718230249499,-764.43,0.00017534,2]
[329307113,1718230249511,-500.0,0.00017534,2]
[329307114,1718230249522,-500.0,0.00017534,2]
[329307115,1718230249536,-1108.71,0.00017534,2]
[329307116,1718230249548,-2444.01,0.00017534,2]
[329307117,1718230249561,-500.0,0.00017534,2]
[329307118,1718230249573,-500.0,0.00017534,2]
[329307119,1718230249584,-505.42,0.00017534,2]
[329307120,1718230249597,-607.44,0.00017534,2]
[329307121,1718230249610,-2271.14,0.00017534,2]
[329307122,1718230249633,-6255.66,0.00017534,2]
[329307123,1718230249648,-2632.92,0.00017534,2]
[329307124,1718230249664,-1448.52,0.00017534,2]
[329307125,1718230249687,-2002.44,0.00017534,2]
[329307126,1718230249701,-500.0,0.00017534,2]
[329307127,1718230249715,-424.56489109,0.00017534,2]
[329307128,1718230249728,-500.0,0.00017534,2]
[329307129,1718230249740,-614.41,0.00017534,2]
[329307130,1718230249753,-3340.25,0.00017534,2]
[329307131,1718230249767,-500.0,0.00017534,2]
[329307132,1718230249779,-661.63,0.00017534,2]
[329307133,1718230249792,-500.0,0.00017534,2]
[329307134,1718230249804,-601.85,0.00017534,2]
[329307135,1718230249820,-309.92,0.00017534,2]
[329307136,1718230249832,-500.0,0.00017534,2]
[329307137,1718230249844,-859.57,0.00017534,2]
[329307138,1718230249856,-500.0,0.00017534,2]
[329307139,1718230249868,-552.48,0.00017534,2]
[329307140,1718230249880,-500.0,0.00017534,2]
[329307141,1718230249893,-500.0,0.00017534,2]
[329307142,1718230249907,-1116.25,0.00017534,2]
[329307143,1718230249918,-706.51,0.00017534,2]
[329307144,1718230249931,-500.0,0.00017534,2]
[329307145,1718230249943,-562.26,0.00017534,2]
[329307146,1718230249955,-847.18,0.00017534,2]
[329307147,1718230249967,-590.95,0.00017534,2]
[329307148,1718230249982,-230.00874475,0.00017571,2]
[329307149,1718230249994,-500.0,0.00017807,2]
[329307150,1718230250009,-500.0,0.00017808,2]
[329307151,1718230250023,-538.37,0.00017808,2]
[329307152,1718230250034,-551.0,0.00017808,2]
[329307153,1718230250046,-500.0,0.00017808,2]
[329307154,1718230250059,-500.0,0.00017808,2]
[329307155,1718230250074,-500.0,0.00017808,2]
[329307156,1718230250086,-500.0,0.00017808,2]
[329307157,1718230250098,-200.66772711,0.00017808,2]
[329307158,1718230250109,-500.0,0.00017808,2]
[329307159,1718230250122,-500.0,0.00017808,2]
[329307160,1718230250134,-571.7,0.00017808,2]
[329307161,1718230250145,-516.66,0.00017808,2]
[329307162,1718230250158,-500.0,0.00017808,2]
[329307163,1718230250170,-500.0,0.00017808,2]
[329307164,1718230250187,-528.94905643,0.00017808,2]
[329307165,1718230250210,-684.53,0.00017808,2]
[329307166,1718230250223,-611.1136572,0.00017808,2]
[329307167,1718230250248,-500.0,0.00017808,2]
[329307168,1718230250262,-622.42,0.00017808,2]
[329307169,1718230250292,-500.0,0.00017808,2]
[329307170,1718230250317,-764.43,0.00017808,2]
[329307171,1718230250356,-500.0,0.00017808,2]
[329307172,1718230250368,-500.0,0.00017808,2]